fUST/lending_fUST_20250604
["ID","MTS","AMOUNT","RATE_DAILY","PERIOD"]
[364215219,1749042648750,-4123.988926,0.0002025,2]
[364215221,1749042648761,-627.42,0.00020273,2]
[364215223,1749042648771,-440.0,0.00020273,2]
[364215225,1749042648781,-477.39,0.00020273,2]
[364215227,1749042648791,-981.07,0.00020273,2]
[364215229,1749042648802,-151.0,0.00020273,2]
[364215231,1749042648811,-2889.7,0.00020273,2]
[364215233,1749042648821,-151.0,0.00020273,2]
[364215235,1749042648831,-2919.59,0.00020273,2]
[364215237,1749042648841,-876.89,0.00020273,2]
[364215239,1749042648850,-1743.65,0.00020273,2]
[364215241,1749042648861,-3684.79,0.00020273,2]
[364215243,1749042648871,-440.0,0.00020273,2]
[364215245,1749042648881,-3714.63,0.00020273,2]
[364215247,1749042648891,-2209.5,0.00020273,2]
[364215249,1749042648900,-742.49,0.00020273,2]
[364215251,1749042648910,-151.0,0.00020273,2]
[364215253,1749042648920,-151.0,0.00020273,2]
[364215255,1749042648929,-1259.57,0.00020273,2]
[364215257,1749042648939,-933.22,0.00020273,2]
[364215259,1749042648949,-168.133872,0.00020273,2]
[364215261,1749042648958,-151.0,0.00020273,2]
[364215263,1749042648968,-168.133872,0.00020273,2]
[364215265,1749042648978,-6296.12,0.00020273,2]
[364215267,1749042648989,-440.0,0.00020273,2]
[364215268,1749042649002,-519.9,0.00020273,2]
[364215271,1749042649014,-926.98,0.00020273,2]
[364215273,1749042649025,-1503.46,0.00020273,2]
[364215275,1749042649037,-843.76,0.00020273,2]
[364215276,1749042649047,-1022.64,0.00020273,2]
[364215278,1749042649058,-956.94,0.00020273,2]
[364215280,1749042649069,-151.0,0.00020273,2]
[364215282,1749042649080,-1396.41,0.00020273,2]
[364215284,1749042649091,-2933.99,0.00020273,2]
[364215286,1749042649102,-4792.12,0.00020273,2]
[364215288,1749042649113,-151.0,0.00020273,2]
[364215290,1749042649124,-151.0,0.00020273,2]
[364215292,1749042649133,-179.707519,0.00020273,2]
[364215294,1749042649144,-179.707519,0.00020273,2]
[364215296,1749042649154,-151.0,0.00020273,2]
[364215298,1749042649163,-1345.56,0.00020273,2]
[364215300,1749042649173,-166.0,0.00020274,2]
[364215302,1749042649182,-1000.0,0.00020366,2]
[364215304,1749042649192,-500.6663336,0.00020366,2]
[364215306,1749042649202,-151.0,0.000204,3]
[364215308,1749042649212,-4561.37926191,0.00020486,3]
[364215310,1749042649222,-627.42,0.00020547,2]
[364215312,1749042649231,-203.56546602,0.00020547,2]
[364215314,1749042649241,-151.0,0.00020547,2]
[364215316,1749042649251,-477.39,0.00020547,2]
[364215318,1749042649261,-981.07,0.00020547,2]
[364215320,1749042649272,-151.0,0.00020547,2]
[364215322,1749042649282,-151.0,0.00020547,2]
[364215324,1749042649292,-2889.7,0.00020547,2]
[364215326,1749042649302,-151.0,0.00020547,2]
[364215328,1749042649312,-500.0,0.00020547,2]
[364215330,1749042649321,-2919.59,0.00020547,2]
[364215332,1749042649330,-876.89,0.00020547,2]
[364215334,1749042649340,-1743.65,0.00020547,2]
[364215336,1749042649351,-3684.79,0.00020547,2]
[364215338,1749042649361,-440.0,0.00020547,2]
[364215340,1749042649371,-3714.63,0.00020547,2]
[364215342,1749042649380,-2209.5,0.00020547,2]
[364215344,1749042649390,-223.703223,0.00020547,2]
[364215346,1749042649400,-742.49,0.00020547,2]
[364215348,1749042649410,-223.703223,0.00020547,2]
[364215350,1749042649420,-1259.57,0.00020547,2]
[364215352,1749042649430,-933.22,0.00020547,2]
[364215354,1749042649439,-6296.12,0.00020547,2]
[364215356,1749042649450,-413.03375496,0.00020547,2]
[364215358,1749042649459,-519.9,0.00020547,2]
[364215360,1749042649468,-926.98,0.00020547,2]
[364215362,1749042649478,-1503.46,0.00020547,2]
[364215364,1749042649488,-843.76,0.00020547,2]
[364215366,1749042649497,-1022.64,0.00020547,2]
[364215368,1749042649506,-956.94,0.00020547,2]
[364215370,1749042649517,-1396.41,0.00020547,2]
[364215372,1749042649527,-2933.99,0.00020547,2]
[364215374,1749042649537,-4792.12,0.00020547,2]
[364215376,1749042649546,-1345.56,0.00020547,2]
[364215378,1749042649556,-151.0,0.000206,2]
[364215380,1749042649565,-606.756285,0.000206,2]
[364215382,1749042649575,-606.756285,0.000206,2]
[364215384,1749042649585,-880.67,0.000206,2]
[364215386,1749042649594,-2410.0,0.000206,2]
[364215388,1749042649603,-47430.28,0.000206,2]
[364215390,1749042649612,-151.747389,0.000206,2]
[364215392,1749042649621,-151.0,0.000206,2]
[364215394,1749042649631,-151.0,0.000206,2]
[364215396,1749042649640,-151.0,0.000206,2]
[364215398,1749042649649,-151.0,0.000206,2]
[364215399,1749042649658,-151.0,0.000206,2]
[364215401,1749042649667,-151.0,0.000206,2]
[364215403,1749042649676,-151.0,0.000206,2]
[364215405,1749042649685,-151.0,0.000206,2]
[364215407,1749042649695,-309.560023,0.000206,2]
[364215409,1749042649705,-309.560023,0.000206,2]
[364215411,1749042649714,-535.64223,0.000206,2]
[364215413,1749042649724,-535.64223,0.000206,2]
[364215415,1749042649733,-151.0,0.000206,2]
[364215417,1749042649743,-151.0,0.00020631,2]
[364215419,1749042649752,-151.0,0.00020631,2]
[364215421,1749042649761,-151.0,0.00020658,2]
[364215423,1749042649771,-151.0,0.00020658,2]
[364215425,1749042649782,-151.0,0.00020686,2]
[364215427,1749042649792,-151.0,0.00020686,2]
[364215429,1749042649801,-151.0,0.00020713,2]
[364215431,1749042649811,-151.0,0.00020713,2]
[364215433,1749042649821,-151.0,0.00020741,2]
[364215435,1749042649830,-151.0,0.00020741,2]
[364215437,1749042649840,-4561.37926191,0.00020762,3]
[364215439,1749042649850,-245.0,0.00020768,2]
[364215441,1749042649859,-167.47185108,0.00020768,2]
[364215443,1749042649869,-152.89886442,0.00020776,2]
[364215445,1749042649879,-842.5625,0.000208,3]
[364215447,1749042649889,-314.98208564,0.000208,3]
[364215449,1749042649899,-160.0,0.000208,3]
[364215451,1749042649908,-12672.94222187,0.000208,3]
[364215453,1749042649918,-627.42,0.00020821,2]
[364215455,1749042649927,-477.39,0.00020821,2]
[364215457,1749042649937,-981.07,0.00020821,2]
[364215459,1749042649946,-2889.7,0.00020821,2]
[364215461,1749042649956,-2919.59,0.00020821,2]
[364215463,1749042649966,-876.89,0.00020821,2]
[364215465,1749042649975,-1743.65,0.00020821,2]
[364215467,1749042649985,-3684.79,0.00020821,2]
[364215469,1749042649994,-440.0,0.00020821,2]
[364215471,1749042650008,-3714.63,0.00020821,2]
[364215473,1749042650019,-2209.5,0.00020821,2]
[364215475,1749042650028,-742.49,0.00020821,2]
[364215477,1749042650038,-1259.57,0.00020821,2]
[364215479,1749042650049,-933.22,0.00020821,2]
[364215481,1749042650059,-6296.12,0.00020821,2]
[364215483,1749042650068,-519.9,0.00020821,2]
[364215485,1749042650079,-926.98,0.00020821,2]
[364215487,1749042650090,-1503.46,0.00020821,2]
[364215489,1749042650101,-843.76,0.00020821,2]
[364215491,1749042650111,-1022.64,0.00020821,2]
[364215493,1749042650121,-956.94,0.00020821,2]
[364215495,1749042650131,-1396.41,0.00020821,2]
[364215497,1749042650141,-2933.99,0.00020821,2]
[364215499,1749042650151,-4792.12,0.00020821,2]
[364215501,1749042650160,-1345.56,0.00020821,2]
[364215503,1749042650170,-151.0,0.000209,3]
[364215505,1749042650180,-1500.0,0.00020914,2]
[364215507,1749042650190,-500.0,0.00020972,2]
[364215509,1749042650199,-500.0,0.00020972,2]
[364215510,1749042650208,-500.0,0.00020972,2]
[364215511,1749042650217,-500.0,0.00020972,2]
[364215512,1749042650226,-500.0,0.00020972,2]
[364215513,1749042650235,-500.0,0.00020972,2]
[364215514,1749042650245,-500.0,0.00020972,2]
[364215515,1749042650254,-500.0,0.00020972,2]
[364215516,1749042650265,-500.0,0.00020972,2]
[364215517,1749042650274,-500.0,0.00020972,2]
[364215518,1749042650283,-500.0,0.00020972,2]
[364215519,1749042650291,-421.21542315,0.00020972,2]
[364215521,1749042650300,-500.0,0.00020972,2]
[364215522,1749042650311,-600.0,0.00020972,2]
[364215524,1749042650320,-500.0,0.00020972,2]
[364215527,1749042650330,-500.0,0.00020972,2]
[364215529,1749042650339,-500.0,0.00020972,2]
[364215531,1749042650349,-500.0,0.00020972,2]
[364215533,1749042650359,-621.09360266,0.00020972,2]
[364215535,1749042650368,-500.0,0.00021032,2]
[364215537,1749042650377,-4561.37926191,0.00021038,4]
[364215539,1749042650386,-627.42,0.00021095,2]
[364215541,1749042650395,-477.39,0.00021095,2]
[364215542,1749042650404,-981.07,0.00021095,2]
[364215545,1749042650414,-2889.7,0.00021095,2]
[364215547,1749042650423,-500.0,0.00021095,3]
[364215548,1749042650433,-2919.59,0.00021095,2]
[364215550,1749042650443,-876.89,0.00021095,2]
[364215553,1749042650453,-1743.65,0.00021095,2]
[364215555,1749042650462,-3684.79,0.00021095,2]
[364215557,1749042650472,-440.0,0.00021095,2]
[364215559,1749042650482,-3714.63,0.00021095,2]
[364215561,1749042650492,-2209.5,0.00021095,2]
[364215563,1749042650501,-742.49,0.00021095,2]
[364215564,1749042650512,-1259.57,0.00021095,2]
[364215567,1749042650522,-933.22,0.00021095,2]
[364215569,1749042650532,-6296.12,0.00021095,2]
[364215571,1749042650542,-519.9,0.00021095,2]
[364215573,1749042650553,-926.98,0.00021095,2]
[364215575,1749042650562,-1503.46,0.00021095,2]
[364215577,1749042650572,-843.76,0.00021095,2]
[364215579,1749042650582,-1022.64,0.00021095,2]
[364215581,1749042650592,-956.94,0.00021095,2]
[364215583,1749042650601,-1396.41,0.00021095,2]
[364215585,1749042650611,-2933.99,0.00021095,2]
[364215587,1749042650621,-4792.12,0.00021095,2]
[364215589,1749042650631,-1345.56,0.00021095,2]
[364215591,1749042650640,-500.0,0.0002116,2]
[364215593,1749042650650,-500.0,0.0002116,2]
[364215595,1749042650659,-1500.0,0.00021164,2]
[364215597,1749042650669,-500.0,0.0002117,2]
[364215599,1749042650678,-354.56540062,0.0002117,2]
[364215601,1749042650690,-160.3024375,0.0002117,2]
[364215603,1749042650699,-575.49483425,0.0002117,2]
[364215605,1749042650708,-500.0,0.0002117,2]
[364215607,1749042650718,-500.0,0.0002117,2]
[364215609,1749042650728,-500.0,0.00021171,2]
[364215611,1749042650738,-500.0,0.00021171,2]
[364215623,1749042650747,-500.0,0.00021171,2]
[364215625,1749042650851,-500.0,0.00021171,2]
[364215627,1749042650861,-500.0,0.00021171,2]
[364215629,1749042650870,-500.0,0.00021181,2]
[364215631,1749042650880,-1888.0,0.00021182,2]
[364215633,1749042650890,-256.12305451,0.00021182,2]
[364215635,1749042650900,-207.4,0.00021182,2]
[364215638,1749042650910,-500.0,0.00021182,2]
[364215640,1749042650919,-500.0,0.00021182,2]
[364215641,1749042650929,-500.0,0.00021182,2]
[364215643,1749042650938,-500.0,0.00021182,2]
[364215646,1749042650948,-500.0,0.00021182,2]
[364215647,1749042650958,-5000.0,0.00021182,2]
[364215649,1749042650968,-500.0,0.00021182,2]
[364215651,1749042650978,-500.0,0.00021182,2]
[364215653,1749042650988,-500.0,0.00021182,2]
[364215655,1749042651003,-500.0,0.00021182,2]
[364215657,1749042651013,-500.0,0.00021182,2]
[364215659,1749042651022,-500.0,0.00021182,2]
[364215661,1749042651032,-500.0,0.00021182,2]
[364215663,1749042651043,-500.0,0.00021182,2]
[364215665,1749042651053,-500.0,0.00021182,2]
[364215667,1749042651063,-500.0,0.00021182,2]
[364215669,1749042651075,-609.26386653,0.00021237,2]
[364215671,1749042651085,-4561.37926191,0.00021314,5]
[364215673,1749042651094,-500.0,0.00021315,2]
[364215675,1749042651105,-500.0,0.00021315,2]
[364215677,1749042651115,-500.0,0.00021315,2]
[364215679,1749042651125,-500.0,0.00021315,2]
[364215681,1749042651135,-500.0,0.00021315,2]
[364215683,1749042651145,-627.42,0.00021369,2]
[364215685,1749042651158,-151.0,0.00021369,2]
[364215687,1749042651168,-152.650201,0.00021369,2]
[364215689,1749042651178,-151.0,0.00021369,2]
[364215691,1749042651188,-477.39,0.00021369,2]
[364215693,1749042651198,-981.07,0.00021369,2]
[364215695,1749042651208,-151.0,0.00021369,2]
[364215697,1749042651218,-2889.7,0.00021369,2]
[364215699,1749042651227,-2919.59,0.00021369,2]
[364215701,1749042651237,-876.89,0.00021369,2]
[364215703,1749042651247,-1743.65,0.00021369,2]
[364215705,1749042651257,-3684.79,0.00021369,2]
[364215707,1749042651268,-440.0,0.00021369,2]
[364215709,1749042651277,-3714.63,0.00021369,2]
[364215711,1749042651287,-2209.5,0.00021369,2]
[364215713,1749042651296,-742.49,0.00021369,2]
[364215716,1749042651306,-151.0,0.00021369,2]
[364215718,1749042651316,-1259.57,0.00021369,2]
[364215720,1749042651325,-933.22,0.00021369,2]
[364215722,1749042651335,-168.133872,0.00021369,2]
[364215724,1749042651345,-168.133872,0.00021369,2]
[364215726,1749042651354,-6296.12,0.00021369,2]
[364215728,1749042651364,-519.9,0.00021369,2]
[364215730,1749042651374,-926.98,0.00021369,2]
[364215732,1749042651383,-1503.46,0.00021369,2]
[364215733,1749042651393,-843.76,0.00021369,2]
[364215734,1749042651402,-1022.64,0.00021369,2]
[364215735,1749042651412,-956.94,0.00021369,2]
[364215736,1749042651423,-151.0,0.00021369,2]
[364215737,1749042651432,-1396.41,0.00021369,2]
[364215738,1749042651442,-2933.99,0.00021369,2]
[364215739,1749042651451,-4792.12,0.00021369,2]
[364215740,1749042651460,-151.0,0.00021369,2]
[364215741,1749042651470,-151.0,0.00021369,2]
[364215742,1749042651480,-151.0,0.00021369,2]
[364215743,1749042651489,-1345.56,0.00021369,2]
[364215744,1749042651498,-609.0,0.00021454,2]
[364215746,1749042651509,-823.0,0.00021454,2]
[364215748,1749042651520,-1000.0,0.0002152,2]
[364215750,1749042651530,-500.0,0.0002152,2]
[364215752,1749042651539,-500.0,0.0002152,2]
[364215754,1749042651548,-500.0,0.0002152,2]
[364215755,1749042651558,-1000.0,0.0002152,2]
[364215756,1749042651567,-500.0,0.0002152,2]
[364215757,1749042651576,-500.0,0.0002152,2]
[364215758,1749042651586,-500.0,0.0002152,2]
[364215759,1749042651595,-1000.0,0.0002152,2]
[364215760,1749042651605,-500.0,0.0002152,2]
[364215761,1749042651614,-500.0,0.0002152,2]
[364215762,1749042651623,-504.31260326,0.0002152,2]
[364215763,1749042651635,-500.0,0.0002152,2]
[364215764,1749042651644,-600.0,0.0002152,2]
[364215765,1749042651654,-1000.0,0.0002152,2]
[364215766,1749042651664,-500.0,0.0002152,2]
[364215767,1749042651674,-1000.0,0.0002152,2]
[364215768,1749042651683,-4561.37926191,0.0002159,5]
[364215769,1749042651692,-31301.89519758,0.00021642,3]
[364215770,1749042651701,-372319.78341,0.00021642,2]
[364215771,1749042651710,-151.0,0.00021643,2]
[364215772,1749042651720,-627.42,0.00021643,2]
[364215773,1749042651730,-151.0,0.00021643,2]
[364215774,1749042651740,-151.0,0.00021643,2]
[364215775,1749042651749,-152.155345,0.00021643,2]
[364215776,1749042651759,-152.062489,0.00021643,2]
[364215777,1749042651770,-477.39,0.00021643,2]
[364215778,1749042651780,-981.07,0.00021643,2]
[364215779,1749042651789,-151.0,0.00021643,2]
[364215780,1749042651798,-151.0,0.00021643,2]
[364215781,1749042651808,-2889.7,0.00021643,2]
[364215782,1749042651817,-151.0,0.00021643,2]
[364215783,1749042651827,-229.39,0.00021643,4]
[364215784,1749042651837,-2919.59,0.00021643,2]
[364215785,1749042651846,-876.89,0.00021643,2]
[364215786,1749042651856,-1743.65,0.00021643,2]
[364215787,1749042651866,-3684.79,0.00021643,2]
[364215788,1749042651876,-440.0,0.00021643,2]
[364215789,1749042651885,-3714.63,0.00021643,2]
[364215790,1749042651895,-2209.5,0.00021643,2]
[364215791,1749042651905,-223.703223,0.00021643,2]
[364215792,1749042651915,-742.49,0.00021643,2]
[364215793,1749042651924,-223.703223,0.00021643,2]
[364215794,1749042651934,-211.84498,0.00021643,2]
[364215795,1749042651943,-1259.57,0.00021643,2]
[364215796,1749042651953,-933.22,0.00021643,2]
[364215797,1749042651962,-151.0,0.00021643,2]
[364215798,1749042651972,-6296.12,0.00021643,2]
[364215799,1749042651982,-519.9,0.00021643,2]
[364215800,1749042651993,-926.98,0.00021643,2]
[364215801,1749042652005,-1503.46,0.00021643,2]
[364215802,1749042652015,-843.76,0.00021643,2]
[364215803,1749042652025,-1022.64,0.00021643,2]
[364215804,1749042652034,-956.94,0.00021643,2]
[364215805,1749042652045,-1396.41,0.00021643,2]
[364215806,1749042652055,-2933.99,0.00021643,2]
[364215807,1749042652065,-4792.12,0.00021643,2]
[364215808,1749042652075,-179.707519,0.00021643,2]
[364215809,1749042652087,-179.707519,0.00021643,2]
[364215810,1749042652096,-1345.56,0.00021643,2]
[364215811,1749042652106,-208.884,0.00021703,2]
[364215812,1749042652117,-238.354,0.00021703,2]
[364215813,1749042652127,-250.0,0.00021703,2]
[364215814,1749042652137,-257.959,0.00021703,2]
[364215815,1749042652146,-215.651,0.00021703,2]
[364215816,1749042652156,-974.114,0.00021703,2]
[364215817,1749042652166,-2227.0,0.00021703,2]
[364215818,1749042652176,-709.0,0.00021703,2]
[364215819,1749042652185,-405.0,0.00021703,2]
[364215820,1749042652195,-500.0,0.00021707,2]
[364215821,1749042652205,-1000.0,0.00021707,2]
[364215822,1749042652215,-1000.0,0.00021718,2]
[364215823,1749042652225,-1000.0,0.00021718,2]
[364215824,1749042652235,-1000.0,0.00021718,2]
[364215825,1749042652245,-501.11265055,0.00021719,2]
[364215827,1749042652255,-509.59323327,0.00021719,2]
[364215829,1749042652266,-1000.0,0.00021719,2]
[364215831,1749042652277,-500.50520965,0.00021719,2]
[364215833,1749042652288,-1000.0,0.00021719,2]
[364215835,1749042652298,-1000.0,0.00021729,2]
[364215837,1749042652307,-5000.0,0.0002173,2]
[364215839,1749042652317,-606.756285,0.000218,2]
[364215841,1749042652327,-606.756285,0.000218,2]
[364215843,1749042652337,-1271.61743733,0.000218,2]
[364215845,1749042652346,-1000.0,0.00021863,2]
[364215847,1749042652355,-503.81646108,0.00021863,2]
[364215849,1749042652365,-1000.0,0.00021863,2]
[364215851,1749042652374,-1000.0,0.00021863,2]
[364215853,1749042652383,-1000.0,0.00021863,2]
[364215855,1749042652392,-4561.37926191,0.00021866,6]
[364215857,1749042652402,-152.89886442,0.00021885,2]
[364215859,1749042652411,-2410.0,0.000219,2]
[364215861,1749042652420,-47430.28,0.000219,2]
[364215863,1749042652429,-1002.569127,0.000219,2]
[364215865,1749042652439,-535.64223,0.000219,2]
[364215867,1749042652450,-535.64223,0.000219,2]
[364215869,1749042652459,-627.42,0.00021917,2]
[364215871,1749042652469,-500.0,0.00021917,2]
[364215873,1749042652478,-500.0,0.00021917,2]
[364215875,1749042652488,-500.0,0.00021917,2]
[364215877,1749042652498,-500.0,0.00021917,2]
[364215879,1749042652507,-644.67946039,0.00021917,2]
[364215881,1749042652519,-158.26813,0.00021917,2]
[364215883,1749042652529,-151.0,0.00021917,2]
[364215885,1749042652538,-151.0,0.00021917,2]
[364215887,1749042652548,-477.39,0.00021917,2]
[364215889,1749042652557,-151.0,0.00021917,2]
[364215891,1749042652567,-151.0,0.00021917,2]
[364215893,1749042652577,-151.0,0.00021917,2]
[364215895,1749042652586,-504.7392332,0.00021917,2]
[364215897,1749042652595,-151.0,0.00021917,2]
[364215899,1749042652604,-151.0,0.00021917,2]
[364215901,1749042652614,-981.07,0.00021917,2]
[364215903,1749042652624,-2889.7,0.00021917,2]
[364215905,1749042652634,-309.560023,0.00021917,2]
[364215907,1749042652644,-2919.59,0.00021917,2]
[364215909,1749042652653,-309.560023,0.00021917,2]
[364215911,1749042652662,-876.89,0.00021917,2]
[364215913,1749042652674,-1743.65,0.00021917,2]
[364215915,1749042652685,-3684.79,0.00021917,2]
[364215917,1749042652694,-440.0,0.00021917,2]
[364215919,1749042652704,-3714.63,0.00021917,2]
[364215921,1749042652713,-2209.5,0.00021917,2]
[364215923,1749042652723,-151.0,0.00021917,2]
[364215925,1749042652733,-742.49,0.00021917,2]
[364215927,1749042652742,-1259.57,0.00021917,2]
[364215929,1749042652752,-933.22,0.00021917,2]
[364215931,1749042652762,-6296.12,0.00021917,2]
[364215933,1749042652773,-519.9,0.00021917,2]
[364215935,1749042652782,-926.98,0.00021917,2]
[364215937,1749042652791,-1503.46,0.00021917,2]
[364215939,1749042652801,-843.76,0.00021917,2]
[364215941,1749042652811,-1022.64,0.00021917,2]
[364215943,1749042652821,-956.94,0.00021917,2]
[364215945,1749042652830,-1396.41,0.00021917,2]
[364215947,1749042652839,-2933.99,0.00021917,2]
[364215949,1749042652848,-4792.12,0.00021917,2]
[364215951,1749042652858,-1345.56,0.00021917,2]
[364215953,1749042652867,-250.0,0.0002197,2]
[364215955,1749042652876,-151.0,0.00022,7]
[364215957,1749042652886,-3000.0,0.00022,2]
[364215968,1749042652980,-880.67,0.00022,7]
[364215970,1749042652990,-9011.59487946,0.00022003,2]
[364215972,1749042653003,-12500.0,0.00022003,2]
[364215974,1749042653013,-3000.0,0.0002201,2]
[364215976,1749042653023,-12500.0,0.00022012,2]
[364215978,1749042653033,-3000.0,0.0002202,2]
[364215980,1749042653045,-12500.0,0.00022021,2]
[364215982,1749042653055,-12500.0,0.00022029,2]
[364215984,1749042653065,-3000.0,0.0002203,2]
[364215986,1749042653076,-12500.0,0.00022038,2]
[364215988,1749042653087,-3000.0,0.0002204,2]
[364215990,1749042653097,-12500.0,0.00022047,2]
[364215992,1749042653107,-151.0,0.00022047,7]
[364215994,1749042653118,-168.133872,0.00022047,7]
[364215996,1749042653129,-168.133872,0.00022047,7]
[364215998,1749042653139,-151.0,0.00022047,7]
[364216000,1749042653149,-151.0,0.00022047,7]
[364216002,1749042653160,-151.0,0.00022047,7]
[364216004,1749042653170,-151.0,0.00022047,7]
[364216006,1749042653181,-3000.0,0.0002205,2]
[364216008,1749042653190,-1271.61743725,0.00022056,2]
[364216010,1749042653200,-3000.0,0.0002206,2]
[364216012,1749042653212,-570.48775051,0.00022068,2]
[364216015,1749042653223,-500.0,0.00022068,2]
[364216017,1749042653233,-3000.0,0.0002207,2]
[364216019,1749042653243,-190.577231,0.0002207,7]
[364216021,1749042653253,-179.707519,0.0002207,7]
[364216023,1749042653262,-179.707519,0.0002207,7]
[364216025,1749042653272,-3000.0,0.0002208,2]
[364216027,1749042653282,-3000.0,0.0002209,2]
[364216029,1749042653291,-3000.0,0.000221,2]
[364216031,1749042653301,-3000.0,0.0002211,2]
[364216033,1749042653310,-151.0,0.0002211,7]
[364216035,1749042653320,-3000.0,0.0002212,2]
[364216037,1749042653330,-3000.0,0.0002213,2]
[364216039,1749042653339,-3000.0,0.0002214,2]
[364216041,1749042653351,-4561.37926191,0.00022141,6]
[364216043,1749042653361,-3000.0,0.0002215,2]
[364216045,1749042653370,-3000.0,0.0002216,2]
[364216047,1749042653380,-3000.0,0.0002217,2]
[364216049,1749042653390,-3000.0,0.0002218,2]
[364216051,1749042653402,-3000.0,0.0002219,2]
[364216053,1749042653411,-606.756285,0.00022191,7]
[364216055,1749042653421,-606.756285,0.00022191,7]
[364216057,1749042653431,-627.42,0.00022191,2]
[364216059,1749042653440,-151.0,0.00022191,7]
[364216061,1749042653451,-151.0,0.00022191,7]
[364216063,1749042653461,-381.709095,0.00022191,7]
[364216065,1749042653470,-151.0,0.00022191,7]
[364216067,1749042653480,-381.709095,0.00022191,7]
[364216069,1749042653489,-477.39,0.00022191,2]
[364216070,1749042653498,-981.07,0.00022191,2]
[364216072,1749042653508,-2889.7,0.00022191,2]
[364216074,1749042653519,-2919.59,0.00022191,2]
[364216076,1749042653529,-876.89,0.00022191,2]
[364216078,1749042653540,-1743.65,0.00022191,2]
[364216080,1749042653549,-3684.79,0.00022191,2]
[364216082,1749042653559,-440.0,0.00022191,2]
[364216084,1749042653570,-3714.63,0.00022191,2]
[364216086,1749042653580,-2209.5,0.00022191,2]
[364216088,1749042653589,-742.49,0.00022191,2]
[364216090,1749042653598,-1259.57,0.00022191,2]
[364216092,1749042653608,-933.22,0.00022191,2]
[364216094,1749042653617,-6296.12,0.00022191,2]
[364216096,1749042653627,-519.9,0.00022191,2]
[364216098,1749042653638,-926.98,0.00022191,2]
[364216100,1749042653648,-1503.46,0.00022191,2]
[364216102,1749042653657,-843.76,0.00022191,2]
[364216104,1749042653667,-1022.64,0.00022191,2]
[364216106,1749042653676,-956.94,0.00022191,2]
[364216108,1749042653686,-1396.41,0.00022191,2]
[364216110,1749042653696,-2933.99,0.00022191,2]
[364216112,1749042653706,-4792.12,0.00022191,2]
[364216114,1749042653715,-1345.56,0.00022191,2]
[364216116,1749042653725,-3000.0,0.000222,2]
[364216118,1749042653734,-3000.0,0.0002221,2]
[364216120,1749042653744,-3000.0,0.0002222,2]
[364216123,1749042653754,-151.0,0.0002222,7]
[364216125,1749042653765,-182.116498,0.0002222,7]
[364216127,1749042653775,-151.0,0.0002222,7]
[364216129,1749042653784,-223.703223,0.0002222,7]
[364216131,1749042653794,-223.703223,0.0002222,7]
[364216133,1749042653804,-3000.0,0.0002223,2]
[364216135,1749042653813,-3000.0,0.0002224,2]
[364216137,1749042653824,-714.7715287,0.00022247,2]
[364216139,1749042653833,-3000.0,0.0002225,2]
[364216141,1749042653842,-500.0,0.00022255,2]
[364216143,1749042653852,-3000.0,0.0002226,2]